[Event "Late-Titled-Tuesday-Blitz-October-17-2023"]
[Site "Chess.com"]
[Date "2023.10.17"]
[Round "2"]
[White "Smiechu"]
[Black "Rodalquilar"]
[Result "0-1"]
[WhiteElo "2513"]
[BlackElo "2784"]
[TimeControl "180+1"]
[EndTime "14:18:09 PDT"]
[Termination "Rodalquilar won by resignation"]

1. e4 {[%clk 0:03:00.9]} 1... d5 {[%clk 0:02:59.9]} 2. exd5 {[%clk 0:03:00.1]}
2... Qxd5 {[%clk 0:03:00.8]} 3. Nf3 {[%clk 0:02:59.7]} 3... Bg4 {[%clk
0:03:00.4]} 4. Be2 {[%clk 0:02:59.8]} 4... Nc6 {[%clk 0:03:00.8]} 5. d4 {[%clk
0:03:00]} 5... O-O-O {[%clk 0:03:00.1]} 6. Be3 {[%clk 0:02:59.5]} 6... e5 {[%clk
0:02:58.6]} 7. c4 {[%clk 0:02:59]} 7... Bb4+ {[%clk 0:02:57.1]} 8. Nc3 {[%clk
0:02:57.1]} 8... Qa5 {[%clk 0:02:51.1]} 9. d5 {[%clk 0:02:54.4]} 9... e4 {[%clk
0:02:09.5]} 10. Nd2 {[%clk 0:02:37.7]} 10... Bxe2 {[%clk 0:02:08.8]} 11. Qxe2
{[%clk 0:02:37.9]} 11... Bxc3 {[%clk 0:01:54.1]} 12. bxc3 {[%clk 0:02:30.6]}
12... Ne5 {[%clk 0:01:48.7]} 13. O-O {[%clk 0:02:27.3]} 13... Nf6 {[%clk
0:01:48.2]} 14. Rab1 {[%clk 0:02:19.5]} 14... Qxc3 {[%clk 0:01:25.2]} 15. Rb3
{[%clk 0:02:13.1]} 15... Qc2 {[%clk 0:01:25.7]} 16. Rfb1 {[%clk 0:02:02.7]}
16... b6 {[%clk 0:01:11.5]} 17. Bd4 {[%clk 0:01:08]} 17... Nxc4 {[%clk
0:00:32.9]} 18. Qxc4 {[%clk 0:00:56.3]} 18... Qxd2 {[%clk 0:00:32.9]} 19. Bxf6
{[%clk 0:00:37.6]} 19... gxf6 {[%clk 0:00:31.2]} 20. Rc3 {[%clk 0:00:37.8]}
20... Rd7 {[%clk 0:00:16.5]} 21. Qc6 {[%clk 0:00:37.3]} 21... Qxd5 {[%clk
0:00:15.6]} 22. Qa4 {[%clk 0:00:35.5]} 22... Qd4 {[%clk 0:00:09.7]} 23. Qc2
{[%clk 0:00:34.3]} 23... f5 {[%clk 0:00:08.2]} 24. Rc1 {[%clk 0:00:33.5]} 24...
c5 {[%clk 0:00:06.9]} 25. Rc4 {[%clk 0:00:28]} 25... Qd3 {[%clk 0:00:07]} 26.
Qa4 {[%clk 0:00:26.9]} 26... Rhd8 {[%clk 0:00:06.6]} 27. h3 {[%clk 0:00:22.8]}
27... Rc7 {[%clk 0:00:06.4]} 28. Qa6+ {[%clk 0:00:22]} 28... Kb8 {[%clk
0:00:07]} 29. a4 {[%clk 0:00:20.6]} 29... Rd4 {[%clk 0:00:07.1]} 30. a5 {[%clk
0:00:19.5]} 30... Rxc4 {[%clk 0:00:07]} 31. Rxc4 {[%clk 0:00:19.5]} 31... Qd1+
{[%clk 0:00:04.6]} 32. Kh2 {[%clk 0:00:19.4]} 32... Qd6+ {[%clk 0:00:05.5]} 33.
Kg1 {[%clk 0:00:18.8]} 33... Rd7 {[%clk 0:00:05.1]} 34. axb6 {[%clk 0:00:16]}
34... axb6 {[%clk 0:00:04.6]} 35. Ra4 {[%clk 0:00:15.6]} 35... Qc6 {[%clk
0:00:05.1]} 36. Qe2 {[%clk 0:00:14.7]} 36... Qxa4 {[%clk 0:00:04.4]} 37. Qb2
{[%clk 0:00:11.7]} 37... Qd1+ {[%clk 0:00:04.3]} 38. Kh2 {[%clk 0:00:10.3]}
38... Qd6+ {[%clk 0:00:05.2]} 39. Kg1 {[%clk 0:00:10.4]} 39... Kc7 {[%clk
0:00:06.1]} 40. Qa3 {[%clk 0:00:10]} 40... Qd1+ {[%clk 0:00:05.2]} 41. Kh2
{[%clk 0:00:09.8]} 41... Qd6+ {[%clk 0:00:06.1]} 42. Kg1 {[%clk 0:00:10.1]}
42... Qc6 {[%clk 0:00:07]} 43. Qa7+ {[%clk 0:00:09.7]} 43... Qb7 {[%clk
0:00:07.5]} 44. Qa1 {[%clk 0:00:09.2]} 44... Rd4 {[%clk 0:00:07.7]} 45. Qa2
{[%clk 0:00:08.9]} 45... Qd5 {[%clk 0:00:07.7]} 46. Qa7+ {[%clk 0:00:09.1]}
46... Kc6 {[%clk 0:00:08.3]} 47. Qa8+ {[%clk 0:00:09.1]} 47... Kb5 {[%clk
0:00:08.9]} 48. Qe8+ {[%clk 0:00:09.3]} 48... Kb4 {[%clk 0:00:09.5]} 49. Qb8
{[%clk 0:00:06.9]} 49... Rd1+ {[%clk 0:00:09.7]} 0-1

[Event "Late-Titled-Tuesday-Blitz-October-17-2023"]
[Site "Chess.com"]
[Date "2023.10.17"]
[Round "2"]
[White "Chempiblinka"]
[Black "esskeettit"]
[Result "0-1"]
[WhiteElo "2266"]
[BlackElo "2490"]
[TimeControl "180+1"]
[EndTime "14:18:10 PDT"]
[Termination "esskeettit won on time"]

1. Nf3 {[%clk 0:02:49.8]} 1... c5 {[%clk 0:02:58.6]} 2. g3 {[%clk 0:02:49]} 2...
Nc6 {[%clk 0:02:55]} 3. Bg2 {[%clk 0:02:49.6]} 3... g6 {[%clk 0:02:55.5]} 4. O-O
{[%clk 0:02:49.2]} 4... Bg7 {[%clk 0:02:56.1]} 5. c4 {[%clk 0:02:48.4]} 5... e5
{[%clk 0:02:56.4]} 6. d3 {[%clk 0:02:47.3]} 6... Nge7 {[%clk 0:02:54.8]} 7. Nc3
{[%clk 0:02:46.9]} 7... d6 {[%clk 0:02:55]} 8. Rb1 {[%clk 0:02:45.2]} 8... O-O
{[%clk 0:02:51]} 9. a3 {[%clk 0:02:45.4]} 9... a5 {[%clk 0:02:50.5]} 10. Ne1
{[%clk 0:02:43.4]} 10... Be6 {[%clk 0:02:47.5]} 11. Nc2 {[%clk 0:02:43.2]} 11...
d5 {[%clk 0:02:44.3]} 12. b3 {[%clk 0:02:41.8]} 12... d4 {[%clk 0:02:29.7]} 13.
Nb5 {[%clk 0:02:41.5]} 13... h6 {[%clk 0:02:20.8]} 14. b4 {[%clk 0:02:41.3]}
14... b6 {[%clk 0:02:01]} 15. bxc5 {[%clk 0:02:38.2]} 15... bxc5 {[%clk
0:02:01.9]} 16. a4 {[%clk 0:02:36.5]} 16... Rb8 {[%clk 0:02:00.6]} 17. Ba3
{[%clk 0:02:31.6]} 17... Nb4 {[%clk 0:02:00.4]} 18. Na1 {[%clk 0:02:30.5]} 18...
f5 {[%clk 0:01:54.4]} 19. Nb3 {[%clk 0:02:27.8]} 19... Qb6 {[%clk 0:01:47.8]}
20. Bxb4 {[%clk 0:02:00.9]} 20... cxb4 {[%clk 0:01:35.6]} 21. c5 {[%clk
0:01:56.5]} 21... Qd8 {[%clk 0:01:33.3]} 22. c6 {[%clk 0:01:49]} 22... Qb6
{[%clk 0:01:20.7]} 23. Qc2 {[%clk 0:01:19.1]} 23... Rbc8 {[%clk 0:01:20.1]} 24.
Rfc1 {[%clk 0:01:15]} 24... Kh7 {[%clk 0:01:16.3]} 25. c7 {[%clk 0:01:13.7]}
25... Nd5 {[%clk 0:00:23.1]} 26. Bxd5 {[%clk 0:01:02.2]} 26... Bxd5 {[%clk
0:00:22.7]} 27. Qc5 {[%clk 0:01:01.9]} 27... Qxc5 {[%clk 0:00:19]} 28. Rxc5
{[%clk 0:01:02.8]} 28... Bxb3 {[%clk 0:00:17.6]} 29. Rxb3 {[%clk 0:00:58.3]}
29... Rf7 {[%clk 0:00:18.1]} 30. Rd5 {[%clk 0:00:41.2]} 30... e4 {[%clk
0:00:12.6]} 31. Rd8 {[%clk 0:00:31.8]} 31... Rcxc7 {[%clk 0:00:12.3]} 32. Nxc7
{[%clk 0:00:30.6]} 32... Rxc7 {[%clk 0:00:13.1]} 33. Rd5 {[%clk 0:00:23.3]}
33... Rc3 {[%clk 0:00:10.4]} 34. Rb1 {[%clk 0:00:18.2]} 34... exd3 {[%clk
0:00:09.9]} 35. exd3 {[%clk 0:00:19.1]} 35... Rxd3 {[%clk 0:00:10.3]} 36. Rxa5
{[%clk 0:00:19.7]} 36... b3 {[%clk 0:00:04.9]} 37. Rb5 {[%clk 0:00:19.3]} 37...
Rc3 {[%clk 0:00:04.2]} 38. R5xb3 {[%clk 0:00:19]} 38... Rc4 {[%clk 0:00:02.6]}
39. Ra3 {[%clk 0:00:14.7]} 39... Rc6 {[%clk 0:00:01.3]} 40. a5 {[%clk
0:00:12.6]} 40... Ra6 {[%clk 0:00:01.4]} 41. Rb6 {[%clk 0:00:13]} 41... Ra8
{[%clk 0:00:01.5]} 42. a6 {[%clk 0:00:07.7]} 42... h5 {[%clk 0:00:02.3]} 43. a7
{[%clk 0:00:05.4]} 43... Bf8 {[%clk 0:00:02.7]} 44. Ra1 {[%clk 0:00:01.2]} 44...
Bc5 {[%clk 0:00:03.6]} 0-1

[Event "Late-Titled-Tuesday-Blitz-October-17-2023"]
[Site "Chess.com"]
[Date "2023.10.17"]
[Round "2"]
[White "VdovinDmitry"]
[Black "Alex_Sahakyan2006"]
[Result "0-1"]
[WhiteElo "2368"]
[BlackElo "2776"]
[TimeControl "180+1"]
[EndTime "14:18:15 PDT"]
[Termination "Alex_Sahakyan2006 won on time"]

1. e4 {[%clk 0:03:00.9]} 1... Nc6 {[%clk 0:02:57.4]} 2. d4 {[%clk 0:02:57.5]}
2... d5 {[%clk 0:02:57.1]} 3. Nc3 {[%clk 0:02:57.7]} 3... dxe4 {[%clk
0:02:56.9]} 4. d5 {[%clk 0:02:56.1]} 4... Nb8 {[%clk 0:02:57.2]} 5. f3 {[%clk
0:02:52.9]} 5... exf3 {[%clk 0:02:55.3]} 6. Nxf3 {[%clk 0:02:52.7]} 6... c6
{[%clk 0:02:56]} 7. Bf4 {[%clk 0:02:49.8]} 7... Nf6 {[%clk 0:02:55]} 8. Bc4
{[%clk 0:02:47.9]} 8... cxd5 {[%clk 0:02:50.2]} 9. Nxd5 {[%clk 0:02:44.7]} 9...
Nxd5 {[%clk 0:02:48.8]} 10. Qxd5 {[%clk 0:02:41.5]} 10... Qxd5 {[%clk
0:02:44.4]} 11. Bxd5 {[%clk 0:02:42.4]} 11... e6 {[%clk 0:02:44.9]} 12. Bb3
{[%clk 0:02:40.2]} 12... Nc6 {[%clk 0:02:34.4]} 13. O-O-O {[%clk 0:02:39.3]}
13... f6 {[%clk 0:02:30.9]} 14. Rhe1 {[%clk 0:02:30.1]} 14... Kf7 {[%clk
0:02:30.4]} 15. g4 {[%clk 0:02:24.7]} 15... g5 {[%clk 0:02:09.5]} 16. Bc7 {[%clk
0:02:21.4]} 16... h5 {[%clk 0:02:08.4]} 17. h3 {[%clk 0:02:15.7]} 17... hxg4
{[%clk 0:02:07.7]} 18. hxg4 {[%clk 0:02:15.3]} 18... Rh3 {[%clk 0:02:08]} 19.
Rf1 {[%clk 0:02:15.3]} 19... Kg7 {[%clk 0:02:03.4]} 20. c3 {[%clk 0:02:09.9]}
20... Bc5 {[%clk 0:01:55.5]} 21. Bc2 {[%clk 0:02:08.4]} 21... e5 {[%clk
0:01:40.8]} 22. Bf5 {[%clk 0:01:57.8]} 22... Bxf5 {[%clk 0:01:27.9]} 23. gxf5
{[%clk 0:01:58.7]} 23... Rf8 {[%clk 0:01:12.7]} 24. b4 {[%clk 0:01:47.1]} 24...
Be3+ {[%clk 0:01:11.5]} 25. Kc2 {[%clk 0:01:46.6]} 25... Rf7 {[%clk 0:01:09.1]}
26. Bd6 {[%clk 0:01:37.3]} 26... Bf4 {[%clk 0:00:40]} 27. Bc5 {[%clk 0:01:25.5]}
27... Ne7 {[%clk 0:00:35.7]} 28. Bxe7 {[%clk 0:01:22.2]} 28... Rxe7 {[%clk
0:00:36.6]} 29. Rd8 {[%clk 0:01:15.8]} 29... g4 {[%clk 0:00:31.2]} 30. Rg1
{[%clk 0:01:02.1]} 30... Rxf3 {[%clk 0:00:23.7]} 31. Rxg4+ {[%clk 0:01:02]}
31... Bg5 {[%clk 0:00:23.7]} 32. Rc4 {[%clk 0:00:59.9]} 32... Rf2+ {[%clk
0:00:19.6]} 33. Kb3 {[%clk 0:00:59.1]} 33... Rd2 {[%clk 0:00:20.1]} 34. Ra8
{[%clk 0:00:57.5]} 34... Rdd7 {[%clk 0:00:15.6]} 35. Rcc8 {[%clk 0:00:57.6]}
35... e4 {[%clk 0:00:15.3]} 36. Rh8 {[%clk 0:00:56.4]} 36... Re5 {[%clk
0:00:07.7]} 37. Rag8+ {[%clk 0:00:55.1]} 37... Kf7 {[%clk 0:00:08]} 38. Rf8+
{[%clk 0:00:53.5]} 38... Ke7 {[%clk 0:00:08.1]} 39. Re8+ {[%clk 0:00:52.2]}
39... Kd6 {[%clk 0:00:08.2]} 40. c4 {[%clk 0:00:41.1]} 40... e3 {[%clk
0:00:06.3]} 41. c5+ {[%clk 0:00:41.3]} 41... Kd5 {[%clk 0:00:06.5]} 42. Rxe5+
{[%clk 0:00:08.4]} 42... fxe5 {[%clk 0:00:07.4]} 43. Rh1 {[%clk 0:00:07.9]}
43... Ke4 {[%clk 0:00:06.3]} 44. Re1 {[%clk 0:00:08.8]} 44... Kxf5 {[%clk
0:00:05.3]} 45. Kc4 {[%clk 0:00:09.7]} 45... Ke4 {[%clk 0:00:05.4]} 46. b5
{[%clk 0:00:10.6]} 46... Rd4+ {[%clk 0:00:05]} 47. Kc3 {[%clk 0:00:09.8]} 47...
Bh4 {[%clk 0:00:05]} 48. c6 {[%clk 0:00:10.7]} 48... Bxe1+ {[%clk 0:00:04.7]}
0-1

[Event "Late-Titled-Tuesday-Blitz-October-17-2023"]
[Site "Chess.com"]
[Date "2023.10.17"]
[Round "2"]
[White "GianmarcoVaR"]
[Black "MAGMAchess02"]
[Result "1-0"]
[WhiteElo "2704"]
[BlackElo "2351"]
[TimeControl "180+1"]
[EndTime "14:18:18 PDT"]
[Termination "GianmarcoVaR won by resignation"]

1. e4 {[%clk 0:02:59.1]} 1... g6 {[%clk 0:02:59.8]} 2. d4 {[%clk 0:02:59.2]}
2... Bg7 {[%clk 0:03:00.5]} 3. c3 {[%clk 0:02:59.8]} 3... c6 {[%clk 0:03:01.4]}
4. Nf3 {[%clk 0:02:58.1]} 4... d5 {[%clk 0:03:02]} 5. e5 {[%clk 0:02:58.4]} 5...
h5 {[%clk 0:03:02.5]} 6. Bd3 {[%clk 0:02:58.3]} 6... Nh6 {[%clk 0:03:02.5]} 7.
Nbd2 {[%clk 0:02:58.9]} 7... Bf5 {[%clk 0:03:02.4]} 8. Be2 {[%clk 0:02:59.5]}
8... Nd7 {[%clk 0:02:59.7]} 9. O-O {[%clk 0:03:00.1]} 9... O-O {[%clk
0:02:52.1]} 10. Re1 {[%clk 0:02:57.7]} 10... f6 {[%clk 0:02:38.7]} 11. exf6
{[%clk 0:02:56.6]} 11... exf6 {[%clk 0:02:37.6]} 12. Nh4 {[%clk 0:02:56.9]}
12... Kh7 {[%clk 0:02:31.4]} 13. Nf1 {[%clk 0:02:55.8]} 13... Bg4 {[%clk
0:02:17]} 14. Qc2 {[%clk 0:02:53.3]} 14... f5 {[%clk 0:02:05.6]} 15. Nf3 {[%clk
0:02:53.1]} 15... Bxf3 {[%clk 0:02:03.8]} 16. Bxf3 {[%clk 0:02:52.7]} 16... Nf6
{[%clk 0:01:55.2]} 17. Bd1 {[%clk 0:02:13.3]} 17... Qd7 {[%clk 0:01:54.4]} 18.
Bf4 {[%clk 0:02:03.6]} 18... Rae8 {[%clk 0:01:52.1]} 19. Be2 {[%clk 0:01:57.9]}
19... Nf7 {[%clk 0:01:38.6]} 20. Bd3 {[%clk 0:01:57.4]} 20... Nd6 {[%clk
0:01:37.8]} 21. f3 {[%clk 0:01:55.6]} 21... Nf7 {[%clk 0:01:21.5]} 22. Ng3
{[%clk 0:01:55.2]} 22... Bh6 {[%clk 0:01:13.4]} 23. Bxh6 {[%clk 0:01:37.9]}
23... Nxh6 {[%clk 0:01:14.3]} 24. Nh1 {[%clk 0:01:37]} 24... Qd6 {[%clk
0:01:12.9]} 25. Nf2 {[%clk 0:01:36.9]} 25... Qf4 {[%clk 0:01:09.4]} 26. Nh3
{[%clk 0:01:36.4]} 26... Qh4 {[%clk 0:01:07.1]} 27. Qd2 {[%clk 0:01:36.5]} 27...
Nf7 {[%clk 0:00:51.7]} 28. Bf1 {[%clk 0:01:36.3]} 28... f4 {[%clk 0:00:29.8]}
29. Qxf4 {[%clk 0:01:36.5]} 29... Qxf4 {[%clk 0:00:17.6]} 30. Nxf4 {[%clk
0:01:37.4]} 30... Ng5 {[%clk 0:00:16.2]} 31. Nd3 {[%clk 0:01:25.4]} 31... Ne6
{[%clk 0:00:12.3]} 32. Re2 {[%clk 0:01:22.5]} 32... Ng7 {[%clk 0:00:10]} 33.
Rae1 {[%clk 0:01:23.1]} 33... Rxe2 {[%clk 0:00:10.2]} 34. Rxe2 {[%clk 0:01:24]}
34... Re8 {[%clk 0:00:11.1]} 35. Rxe8 {[%clk 0:01:24.8]} 35... Nfxe8 {[%clk
0:00:11]} 36. Ne5 {[%clk 0:01:25.7]} 36... Nd6 {[%clk 0:00:10.9]} 37. Bd3 {[%clk
0:01:26.2]} 37... Ngf5 {[%clk 0:00:10]} 38. g4 {[%clk 0:01:26.1]} 38... hxg4
{[%clk 0:00:10.9]} 39. fxg4 {[%clk 0:01:27]} 39... Ne7 {[%clk 0:00:11.7]} 40.
Kf2 {[%clk 0:01:26]} 40... Kg7 {[%clk 0:00:12.6]} 41. h4 {[%clk 0:01:25.6]}
41... a5 {[%clk 0:00:11.7]} 42. Ke3 {[%clk 0:01:23.4]} 42... Kf6 {[%clk
0:00:12]} 43. Kf4 {[%clk 0:01:23.2]} 43... Nf7 {[%clk 0:00:11.1]} 44. g5+ {[%clk
0:01:20.6]} 44... Kg7 {[%clk 0:00:10.5]} 45. Nxf7 {[%clk 0:01:20.5]} 45... Kxf7
{[%clk 0:00:11.4]} 46. Ke5 {[%clk 0:01:21.4]} 46... Nc8 {[%clk 0:00:11.3]} 47.
b3 {[%clk 0:01:15.7]} 47... b5 {[%clk 0:00:10.4]} 48. Be2 {[%clk 0:01:03.3]}
48... Ke7 {[%clk 0:00:07.6]} 49. h5 {[%clk 0:00:53.4]} 49... gxh5 {[%clk
0:00:07.5]} 50. Bxh5 {[%clk 0:00:53.9]} 50... Nd6 {[%clk 0:00:06.6]} 51. g6
{[%clk 0:00:52.4]} 51... Ne8 {[%clk 0:00:05.5]} 52. Be2 {[%clk 0:00:39]} 52...
Ng7 {[%clk 0:00:06.4]} 53. c4 {[%clk 0:00:38.8]} 53... dxc4 {[%clk 0:00:06.7]}
54. bxc4 {[%clk 0:00:39.7]} 54... b4 {[%clk 0:00:07.4]} 55. Bd1 {[%clk
0:00:39.2]} 55... Ne8 {[%clk 0:00:06.7]} 56. Ba4 {[%clk 0:00:39.5]} 56... Kd7
{[%clk 0:00:06.4]} 57. d5 {[%clk 0:00:39.8]} 57... b3 {[%clk 0:00:03.3]} 58.
axb3 {[%clk 0:00:39.8]} 1-0

[Event "Late-Titled-Tuesday-Blitz-October-17-2023"]
[Site "Chess.com"]
[Date "2023.10.17"]
[Round "2"]
[White "nochewycandy"]
[Black "sorch29"]
[Result "0-1"]
[WhiteElo "2715"]
[BlackElo "2398"]
[TimeControl "180+1"]
[EndTime "14:18:18 PDT"]
[Termination "sorch29 won on time"]

1. c4 {[%clk 0:03:00.9]} 1... e5 {[%clk 0:02:59.3]} 2. g3 {[%clk 0:03:00.5]}
2... Nc6 {[%clk 0:02:59.9]} 3. Bg2 {[%clk 0:03:00.3]} 3... g6 {[%clk 0:03:00.8]}
4. Nc3 {[%clk 0:02:59.7]} 4... Bg7 {[%clk 0:03:01.3]} 5. e4 {[%clk 0:03:00.4]}
5... d6 {[%clk 0:03:01.1]} 6. Nge2 {[%clk 0:03:01]} 6... Nd4 {[%clk 0:03:00.4]}
7. O-O {[%clk 0:02:59.9]} 7... c5 {[%clk 0:03:00.1]} 8. d3 {[%clk 0:02:57.2]}
8... Ne7 {[%clk 0:03:00.6]} 9. Nxd4 {[%clk 0:02:57.1]} 9... cxd4 {[%clk
0:03:00.2]} 10. Ne2 {[%clk 0:02:57.1]} 10... O-O {[%clk 0:03:00.7]} 11. b4
{[%clk 0:02:55]} 11... a5 {[%clk 0:03:00.7]} 12. b5 {[%clk 0:02:54.4]} 12... Be6
{[%clk 0:02:41.5]} 13. a4 {[%clk 0:02:38.5]} 13... Qd7 {[%clk 0:02:40.9]} 14.
Ba3 {[%clk 0:02:36.4]} 14... b6 {[%clk 0:02:39.7]} 15. Rc1 {[%clk 0:02:34.4]}
15... Rae8 {[%clk 0:02:35.6]} 16. Qd2 {[%clk 0:02:18.6]} 16... f5 {[%clk
0:02:32.9]} 17. exf5 {[%clk 0:02:13.3]} 17... gxf5 {[%clk 0:02:29.9]} 18. f4
{[%clk 0:02:13]} 18... Bh6 {[%clk 0:02:29.8]} 19. Kh1 {[%clk 0:01:55.3]} 19...
Rf7 {[%clk 0:02:30]} 20. Qe1 {[%clk 0:01:49.7]} 20... Ng6 {[%clk 0:02:29.1]} 21.
Bc6 {[%clk 0:01:41.9]} 21... Qd8 {[%clk 0:02:23.4]} 22. Bxe8 {[%clk 0:01:40.7]}
22... Qxe8 {[%clk 0:02:23.5]} 23. Bxd6 {[%clk 0:01:40]} 23... Bc8 {[%clk
0:02:08.8]} 24. Nxd4 {[%clk 0:01:14.9]} 24... Bb7+ {[%clk 0:02:07.8]} 25. Nf3
{[%clk 0:01:15.5]} 25... Qa8 {[%clk 0:02:00]} 26. Qe2 {[%clk 0:00:59.8]} 26...
Rd7 {[%clk 0:01:44.8]} 27. Bxe5 {[%clk 0:00:53.2]} 27... Nxe5 {[%clk 0:01:42.7]}
28. Qxe5 {[%clk 0:00:48.8]} 28... Bxf3+ {[%clk 0:01:42.2]} 29. Kg1 {[%clk
0:00:49.6]} 29... Bg7 {[%clk 0:01:40.7]} 30. Qe6+ {[%clk 0:00:45.2]} 30... Rf7
{[%clk 0:01:34.1]} 31. Qe3 {[%clk 0:00:37.9]} 31... Bh1 {[%clk 0:01:23.3]} 32.
Rf2 {[%clk 0:00:38.3]} 32... Bf6 {[%clk 0:00:59.5]} 33. d4 {[%clk 0:00:33.5]}
33... Re7 {[%clk 0:00:55.2]} 34. Qd2 {[%clk 0:00:28.7]} 34... Re4 {[%clk
0:00:43.8]} 35. d5 {[%clk 0:00:21.2]} 35... Rd4 {[%clk 0:00:38.3]} 36. Qe2
{[%clk 0:00:17.9]} 36... Be4 {[%clk 0:00:38.4]} 37. Rd1 {[%clk 0:00:18.1]} 37...
Qc8 {[%clk 0:00:34.6]} 38. d6 {[%clk 0:00:12.2]} 38... Qd7 {[%clk 0:00:29.2]}
39. Rff1 {[%clk 0:00:08.9]} 39... Qxd6 {[%clk 0:00:28.9]} 40. h3 {[%clk
0:00:07.3]} 40... Qc5 {[%clk 0:00:28.4]} 41. Kh2 {[%clk 0:00:06.9]} 41... Qxc4
{[%clk 0:00:24.6]} 42. Qxc4+ {[%clk 0:00:06.6]} 42... Rxc4 {[%clk 0:00:25.5]}
43. Rd6 {[%clk 0:00:07.3]} 43... Rc2+ {[%clk 0:00:23.7]} 44. Rf2 {[%clk
0:00:07.4]} 44... Rxf2+ {[%clk 0:00:22.5]} 45. Kg1 {[%clk 0:00:08.3]} 45... Be7
{[%clk 0:00:23.1]} 46. Rxb6 {[%clk 0:00:07.8]} 46... Bc5 {[%clk 0:00:23.1]} 47.
Rb8+ {[%clk 0:00:08.6]} 47... Kg7 {[%clk 0:00:22.8]} 48. b6 {[%clk 0:00:07.2]}
48... Rb2+ {[%clk 0:00:20.9]} 49. Kf1 {[%clk 0:00:08.1]} 49... Rxb6 {[%clk
0:00:21.2]} 50. Rc8 {[%clk 0:00:08]} 50... Be3 {[%clk 0:00:21.1]} 51. Ke2 {[%clk
0:00:08.2]} 51... Bd4 {[%clk 0:00:21.3]} 52. Rc7+ {[%clk 0:00:08.4]} 52... Kg6
{[%clk 0:00:20]} 53. g4 {[%clk 0:00:09.3]} 53... Rb2+ {[%clk 0:00:18.7]} 54. Kd1
{[%clk 0:00:10.1]} 54... Be3 {[%clk 0:00:14.7]} 55. gxf5+ {[%clk 0:00:09.4]}
55... Kxf5 {[%clk 0:00:14.5]} 56. Rf7+ {[%clk 0:00:09.4]} 56... Ke6 {[%clk
0:00:14.8]} 57. Rf8 {[%clk 0:00:09.4]} 57... Bf3+ {[%clk 0:00:15.2]} 0-1

[Event "Late-Titled-Tuesday-Blitz-October-17-2023"]
[Site "Chess.com"]
[Date "2023.10.17"]
[Round "2"]
[White "TheoSlade"]
[Black "schachlana"]
[Result "0-1"]
[WhiteElo "2499"]
[BlackElo "2364"]
[TimeControl "180+1"]
[EndTime "14:18:18 PDT"]
[Termination "schachlana won by resignation"]

1. d4 {[%clk 0:03:00.9]} 1... Nf6 {[%clk 0:02:59.8]} 2. c4 {[%clk 0:03:01.1]}
2... g6 {[%clk 0:03:00.5]} 3. Nc3 {[%clk 0:03:00.2]} 3... Bg7 {[%clk 0:03:01.1]}
4. e4 {[%clk 0:03:00.3]} 4... d6 {[%clk 0:03:01.8]} 5. Nf3 {[%clk 0:03:00.8]}
5... O-O {[%clk 0:03:02.5]} 6. Be2 {[%clk 0:03:01.4]} 6... c5 {[%clk 0:03:02.7]}
7. O-O {[%clk 0:03:00.9]} 7... cxd4 {[%clk 0:03:02]} 8. Nxd4 {[%clk 0:03:01.8]}
8... Nc6 {[%clk 0:03:02.2]} 9. Be3 {[%clk 0:03:01.6]} 9... Bd7 {[%clk
0:02:57.7]} 10. f3 {[%clk 0:02:59.9]} 10... Rc8 {[%clk 0:02:57.1]} 11. Qd2
{[%clk 0:02:59]} 11... a6 {[%clk 0:02:57.7]} 12. Rfd1 {[%clk 0:02:57.8]} 12...
Na5 {[%clk 0:02:46.8]} 13. b3 {[%clk 0:02:54.7]} 13... Qc7 {[%clk 0:02:45.7]}
14. Rac1 {[%clk 0:02:41.8]} 14... e5 {[%clk 0:02:34.3]} 15. Nc2 {[%clk
0:02:40.5]} 15... b5 {[%clk 0:02:29.1]} 16. Qxd6 {[%clk 0:02:22.3]} 16... Qxd6
{[%clk 0:02:18.3]} 17. Rxd6 {[%clk 0:02:22.5]} 17... bxc4 {[%clk 0:02:18.5]} 18.
b4 {[%clk 0:02:08]} 18... Nb3 {[%clk 0:01:59.4]} 19. axb3 {[%clk 0:01:57.7]}
19... cxb3 {[%clk 0:02:00.3]} 20. Na3 {[%clk 0:01:58.3]} 20... b2 {[%clk
0:01:52.5]} 21. Rc2 {[%clk 0:01:58]} 21... Ba4 {[%clk 0:01:52.9]} 22. Rxb2
{[%clk 0:01:45.8]} 22... Rxc3 {[%clk 0:01:52.1]} 23. Nc4 {[%clk 0:01:43.2]}
23... Bb5 {[%clk 0:01:45.4]} 24. Bd2 {[%clk 0:01:33]} 24... Rxc4 {[%clk
0:01:41.2]} 25. Bxc4 {[%clk 0:01:32.5]} 25... Bxc4 {[%clk 0:01:42.1]} 26. Bg5
{[%clk 0:01:27.5]} 26... Ne8 {[%clk 0:01:22.7]} 27. Rc6 {[%clk 0:01:02.3]} 27...
Bb5 {[%clk 0:01:22]} 28. Rc8 {[%clk 0:01:02.8]} 28... Nd6 {[%clk 0:01:19.7]} 29.
Rxf8+ {[%clk 0:00:58.5]} 29... Bxf8 {[%clk 0:01:16.2]} 30. Rd2 {[%clk
0:00:51.1]} 30... Kg7 {[%clk 0:01:02.2]} 31. Bh4 {[%clk 0:00:50.2]} 31... Nc4
{[%clk 0:00:58.8]} 32. Rd8 {[%clk 0:00:49.4]} 32... Bxb4 {[%clk 0:00:57.5]} 33.
Rb8 {[%clk 0:00:30]} 33... Bc5+ {[%clk 0:00:55.4]} 34. Bf2 {[%clk 0:00:29.5]}
34... Bd6 {[%clk 0:00:51.3]} 35. Rb7 {[%clk 0:00:23.3]} 35... Kf6 {[%clk
0:00:45.6]} 36. Bh4+ {[%clk 0:00:22.7]} 36... Ke6 {[%clk 0:00:45.4]} 37. Kf2
{[%clk 0:00:22]} 37... Bc5+ {[%clk 0:00:45.2]} 38. Ke1 {[%clk 0:00:22.2]} 38...
Bb4+ {[%clk 0:00:33.3]} 39. Kf2 {[%clk 0:00:19.3]} 39... Bc5+ {[%clk 0:00:32.9]}
40. Ke1 {[%clk 0:00:19]} 40... h6 {[%clk 0:00:33.3]} 41. g4 {[%clk 0:00:18.6]}
41... g5 {[%clk 0:00:32.5]} 42. Bg3 {[%clk 0:00:18.9]} 42... Bb4+ {[%clk
0:00:29.2]} 43. Kf2 {[%clk 0:00:18.7]} 43... Nd6 {[%clk 0:00:29.1]} 44. Rb8
{[%clk 0:00:17.8]} 44... a5 {[%clk 0:00:28.5]} 45. Rh8 {[%clk 0:00:18.3]} 45...
a4 {[%clk 0:00:26.8]} 46. Rxh6+ {[%clk 0:00:18.9]} 46... f6 {[%clk 0:00:27.5]}
47. Rh8 {[%clk 0:00:16.6]} 47... a3 {[%clk 0:00:27.9]} 48. Ra8 {[%clk
0:00:16.9]} 48... Bc4 {[%clk 0:00:28.1]} 49. h4 {[%clk 0:00:15.7]} 49... gxh4
{[%clk 0:00:28.1]} 50. Bxh4 {[%clk 0:00:16.6]} 50... a2 {[%clk 0:00:28.1]} 51.
f4 {[%clk 0:00:08.1]} 51... Nxe4+ {[%clk 0:00:27.3]} 52. Ke3 {[%clk 0:00:07.9]}
52... Nd6 {[%clk 0:00:21.6]} 53. f5+ {[%clk 0:00:08.4]} 53... Kd5 {[%clk
0:00:21.1]} 54. Bxf6 {[%clk 0:00:07.5]} 54... Bc3 {[%clk 0:00:19.9]} 55. g5
{[%clk 0:00:07.5]} 55... Nxf5+ {[%clk 0:00:20.1]} 56. Kf3 {[%clk 0:00:06.4]}
56... a1=Q {[%clk 0:00:19.1]} 57. Rxa1 {[%clk 0:00:06.9]} 57... Bxa1 {[%clk
0:00:20]} 58. g6 {[%clk 0:00:07.4]} 58... e4+ {[%clk 0:00:18]} 59. Kf4 {[%clk
0:00:08]} 59... Bxf6 {[%clk 0:00:17.1]} 60. Kxf5 {[%clk 0:00:08.6]} 60... Bc3
{[%clk 0:00:17.1]} 0-1